fUST/lending_fUST_20250623
["ID","MTS","AMOUNT","RATE_DAILY","PERIOD"]
[367152222,1750674643953,-460.0,0.00022191,2]
[367152223,1750674643963,-460.0,0.00022191,2]
[367152224,1750674643972,-460.0,0.00022191,2]
[367152225,1750674643981,-478.62,0.00022191,2]
[367152226,1750674643991,-460.0,0.00022191,2]
[367152227,1750674644001,-460.0,0.00022191,2]
[367152228,1750674644010,-460.0,0.00022191,2]
[367152229,1750674644020,-460.0,0.00022191,2]
[367152230,1750674644030,-460.0,0.00022191,2]
[367152231,1750674644039,-519.96639086,0.00022191,2]
[367152232,1750674644049,-460.0,0.00022191,2]
[367152233,1750674644058,-460.0,0.00022191,2]
[367152234,1750674644068,-485.54271554,0.00022191,2]
[367152235,1750674644124,-448.89395148,0.00022191,2]
[367152236,1750674644134,-460.0,0.00022191,2]
[367152237,1750674644144,-487.37,0.00022191,2]
[367152238,1750674644154,-664.44,0.00022191,2]
[367152239,1750674644164,-460.0,0.00022191,2]
[367152240,1750674644173,-460.0,0.00022191,2]
[367152241,1750674644183,-460.0,0.00022191,2]
[367152242,1750674644192,-936.55,0.00022191,2]
[367152243,1750674644202,-460.0,0.00022191,2]
[367152244,1750674644212,-413.9589152,0.00022191,2]
[367152245,1750674644222,-460.0,0.00022191,2]
[367152246,1750674644231,-460.0,0.00022191,2]
[367152247,1750674644240,-433.33626648,0.00022191,2]
[367152248,1750674644250,-460.0,0.00022191,2]
[367152249,1750674644259,-460.0,0.00022191,2]
[367152250,1750674644269,-460.0,0.00022191,2]
[367152251,1750674644278,-460.0,0.00022191,2]
[367152252,1750674644288,-460.0,0.00022191,2]
[367152253,1750674644297,-460.0,0.00022191,2]
[367152254,1750674644307,-504.37,0.00022191,2]
[367152255,1750674644316,-460.0,0.00022191,2]
[367152256,1750674644325,-460.0,0.00022191,2]
[367152257,1750674644335,-739.2,0.00022191,2]
[367152258,1750674644344,-460.0,0.00022191,2]
[367152259,1750674644353,-460.0,0.00022191,2]
[367152260,1750674644362,-460.0,0.00022191,2]
[367152261,1750674644372,-460.0,0.00022191,2]
[367152262,1750674644381,-460.0,0.00022191,2]
[367152263,1750674644391,-790.86,0.00022191,2]
[367152264,1750674644400,-460.0,0.00022191,2]
[367152265,1750674644410,-460.0,0.00022191,2]
[367152266,1750674644419,-460.0,0.00022191,2]
[367152267,1750674644428,-460.0,0.00022191,2]
[367152268,1750674644437,-460.0,0.00022191,2]
[367152269,1750674644447,-561.13682606,0.00022191,2]
[367152292,1750674682172,150.0,0.00021577,30]
[367152293,1750674682585,150.0,0.00023539,30]
[367152294,1750674755501,150.0,0.00022586,30]
[367152298,1750674833299,150.0,0.00022572,30]
[367152299,1750674865187,-187.918352,0.00019363,2]
[367152300,1750674905932,-1801.0,0.00019363,2]
[367152301,1750674918695,150.0,0.00022613,30]
[367152305,1750674998712,150.0,0.00021541,30]
[367152306,1750674999327,150.0,0.00023499,30]
[367152307,1750675020080,-189.0,0.00019363,2]
[367152308,1750675021222,500.0,0.00023499,30]
[367152309,1750675040880,150.0,0.000235,30]
[367152310,1750675051337,5000.0,0.00019102,2]
[367152311,1750675054551,-179.668474,0.00019412,2]
[367152312,1750675058335,150.0,0.00024,30]
[367152313,1750675067251,3503.67669015,0.00019102,2]
[367152314,1750675069393,-63.35825059,0.00019412,2]
[367152315,1750675069416,-96.64174941,0.00019512,2]
[367152316,1750675076290,150.0,0.00021609,30]
[367152317,1750675076800,150.0,0.00023574,30]
[367152318,1750675088860,150.0,0.00024,30]
[367152319,1750675128658,-2298.23663279,0.00019512,2]
[367152320,1750675128681,-161.629511,0.00019559,2]
[367152321,1750675128704,-254.06341865,0.000199,2]
[367152322,1750675128730,-1655.07043756,0.0002,5]
[367152323,1750675156819,150.0,0.00021642,30]
[367152324,1750675157229,150.0,0.0002361,30]
[367152325,1750675236297,150.0,0.00021608,30]
[367152326,1750675236676,150.0,0.00023573,30]
[367152327,1750675321606,150.0,0.00021628,30]
[367152328,1750675322078,150.0,0.00023594,30]
[367152329,1750675333255,-208.88234658,0.00019334,2]
[367152333,1750675366406,-153.89675049,0.00019334,2]
[367152334,1750675384720,-150.0,0.00019334,2]
[367152335,1750675394912,-4487.22090293,0.00019334,2]
[367152336,1750675394933,-187.0,0.0001943,2]
[367152337,1750675394954,-32.77909707,0.0001953,2]
[367152338,1750675400926,150.0,0.00021621,30]
[367152339,1750675401331,150.0,0.00023587,30]
[367152340,1750675402265,-155.71071322,0.00019334,2]
[367152345,1750675459881,-4042.0,0.00019334,2]
[367152347,1750675461278,-168.23,0.00019334,2]
[367152349,1750675479748,150.0,0.00021631,30]
[367152350,1750675480127,150.0,0.00023598,30]
[367152351,1750675482197,194.519447,0.00013699,2]
[367152353,1750675526262,-629.0,0.00019334,2]
[367152357,1750675546706,-5.05928678,0.00019334,2]
[367152358,1750675546729,-144.94071322,0.00019471,2]
[367152359,1750675559040,150.0,0.00021582,30]
[367152360,1750675560743,5000.0,0.00019102,2]
[367152361,1750675561401,-21.56646688,0.00019471,2]
[367152362,1750675561426,-128.43353312,0.00019528,2]
[367152363,1750675563342,150.0,0.00023544,30]
[367152364,1750675578489,-202.69938057,0.00019291,2]
[367152365,1750675590973,-4100.0,0.00019291,2]
[367152366,1750675591824,-162.70413865,0.00019291,2]
[367152367,1750675592129,-156.63987313,0.00019291,2]
[367152370,1750675598159,-163.82220355,0.00019249,2]
[367152371,1750675607663,249.52521692,0.000189,2]
[367152373,1750675640109,150.0,0.00021643,30]
[367152374,1750675640541,150.0,0.0002361,30]
[367152375,1750675651195,-121.30502565,0.00019249,2]
[367152376,1750675651216,-377.95660765,0.00019291,2]
[367152377,1750675651236,-186.729592,0.00019485,2]
[367152378,1750675651257,-134.13858613,0.0001953,2]
[367152379,1750675651276,-349.66207465,0.0002,5]
[367152380,1750675651296,-194.519447,0.00020187,2]
[367152381,1750675651315,-217.19825329,0.000203,3]
[367152382,1750675651336,-1200.0,0.00020354,2]
[367152383,1750675651356,-300.0,0.00020354,2]
[367152384,1750675651377,-300.0,0.00020355,2]
[367152385,1750675651397,-300.0,0.00020355,2]
[367152386,1750675651419,-248.0,0.00020355,2]
[367152387,1750675651441,-300.0,0.00020355,2]
[367152388,1750675651464,-4278.6156633,0.00020356,2]
[367152389,1750675659193,-4700.0,0.00020356,2]
[367152391,1750675716922,150.0,0.00021643,30]
[367152392,1750675717342,150.0,0.0002361,30]
[367152394,1750675746134,-6240.08550341,0.00019605,2]
[367152395,1750675748200,-883.45616072,0.00019605,2]
[367152396,1750675752152,-22.77495427,0.00019605,2]
[367152397,1750675752174,-300.0,0.00020151,2]
[367152398,1750675752199,-2022.9371565,0.00020152,2]
[367152399,1750675756116,-2977.0628435,0.00020152,2]
[367152400,1750675764718,166.87925413,0.00020152,2]
[367152402,1750675794510,150.0,0.00022558,30]
[367152426,1750675831889,-243.28195064,0.0001911,2]
[367152428,1750675831898,-4833.12074587,0.00020152,2]
[367152430,1750675831908,-205.61546908,0.00020256,2]
[367152432,1750675831917,-300.0,0.00020355,2]
[367152434,1750675831926,-1200.0,0.00020355,2]
[367152436,1750675831936,-15862.66915336,0.00020356,2]
[367152439,1750675831962,-58.71518334,0.00020356,2]
[367152441,1750675831971,-165.3911684,0.0002039,2]
[367152443,1750675831980,-1059.88837389,0.00020424,2]
[367152445,1750675831989,-161.99624106,0.00020824,2]
[367152447,1750675831999,-500.0,0.0002134,2]
[367152449,1750675832008,-478.95289712,0.0002134,2]
[367152451,1750675832019,-261.90879139,0.0002134,2]
[367152453,1750675832028,-178.3870228,0.0002134,2]
[367152455,1750675832037,-500.0,0.0002134,2]
[367152457,1750675832047,-500.0,0.0002134,2]
[367152459,1750675832057,-500.0,0.0002134,2]
[367152461,1750675832067,-500.0,0.0002134,2]
[367152463,1750675832080,-500.0,0.0002134,2]
[367152465,1750675832090,-500.0,0.0002134,2]
[367152467,1750675832100,-500.0,0.0002134,2]
[367152469,1750675832109,-500.0,0.0002134,2]
[367152471,1750675832119,-500.0,0.0002134,2]
[367152473,1750675832129,-500.0,0.0002134,2]
[367152475,1750675832139,-500.0,0.0002134,2]
[367152477,1750675832150,-731.6430826,0.00021341,2]
[367152478,1750675832160,-207.4,0.00021359,2]
[367152479,1750675832173,-559.0,0.0002137,2]
[367152480,1750675832183,-559.0,0.0002145,2]
[367152481,1750675832193,-365.8215413,0.000215,2]
[367152482,1750675832203,-161.99624106,0.00021622,2]
[367152483,1750675832212,-559.0,0.00021623,2]
[367152484,1750675832223,-559.0,0.00021748,2]
[367152485,1750675832232,-559.0,0.00021815,2]
[367152486,1750675832242,-288.5477242,0.00021817,2]
[367152487,1750675832251,-559.0,0.00021843,2]
[367152488,1750675832260,-559.0,0.00021847,2]
[367152489,1750675832270,-491.2,0.00021907,3]
[367152490,1750675832280,-328.08002658,0.00021916,2]
[367152491,1750675832289,-516.42320698,0.00021916,2]
[367152492,1750675832299,-500.0,0.00021916,2]
[367152493,1750675832308,-500.0,0.00021916,2]
[367152494,1750675832318,-500.0,0.00021916,2]
[367152495,1750675832328,-500.0,0.00021916,2]
[367152496,1750675832338,-500.0,0.00021916,2]
[367152497,1750675832347,-500.0,0.00021916,2]
[367152498,1750675832358,-397.90282184,0.00021916,2]
[367152499,1750675832369,-500.0,0.00021916,2]
[367152500,1750675832379,-500.0,0.00021916,2]
[367152501,1750675832389,-500.0,0.00021916,2]
[367152502,1750675832399,-500.0,0.00021916,2]
[367152503,1750675832408,-500.0,0.00021916,2]
[367152504,1750675832418,-500.0,0.00021916,2]
[367152505,1750675832428,-500.0,0.00021916,2]
[367152506,1750675832438,-650.0,0.00021916,2]
[367152507,1750675832447,-168.9,0.00021916,2]
[367152508,1750675832457,-1387.98,0.00021917,2]
[367152509,1750675832467,-460.0,0.00021917,2]
[367152510,1750675832477,-179.2834103,0.00021917,2]
[367152511,1750675832486,-460.0,0.00021917,2]
[367152512,1750675832497,-891.14,0.00021917,2]
[367152513,1750675832506,-460.0,0.00021917,2]
[367152514,1750675832516,-460.0,0.00021917,2]
[367152515,1750675832526,-155.96262242,0.00021917,2]
[367152516,1750675832538,-304.03737758,0.00021917,2]
[367152517,1750675832548,-108.84719467,0.00021917,2]
[367152518,1750675832560,-351.15280533,0.00021917,2]
[367152519,1750675832570,-247.01191408,0.00021917,2]
[367152520,1750675832582,-411.86808592,0.00021917,2]
[367152521,1750675832591,-569.66859833,0.00021917,2]
[367152522,1750675832603,-4.91140167,0.00021917,2]
[367152523,1750675832614,-460.0,0.00021917,2]
[367152524,1750675832625,-460.0,0.00021917,2]
[367152525,1750675832635,-460.0,0.00021917,2]
[367152526,1750675832644,-26.61883772,0.00021917,2]
[367152527,1750675832760,-500.0,0.0002134,2]
[367152528,1750675832769,-500.0,0.0002134,2]
[367152529,1750675832778,-433.38116228,0.00021917,2]
[367152530,1750675832787,-1197.71,0.00021917,2]
[367152531,1750675832796,-460.0,0.00021917,2]
[367152532,1750675832805,-460.0,0.00021917,2]
[367152533,1750675832815,-460.0,0.00021917,2]
[367152534,1750675832824,-460.0,0.00021917,2]
[367152535,1750675832834,-735.33,0.00021917,2]
[367152536,1750675832843,-460.0,0.00021917,2]
[367152537,1750675832853,-254.894517,0.00021917,2]
[367152538,1750675832862,-121.67089768,0.00021917,2]
[367152545,1750675837991,-1957.8542478,0.00021127,2]
[367152546,1750675838003,-585.94631444,0.00021127,2]
[367152547,1750675838061,-2456.19943776,0.00021127,2]
[367152548,1750675838072,-500.0,0.0002134,2]
[367152549,1750675838086,-500.0,0.0002134,2]
[367152550,1750675838096,-500.0,0.0002134,2]
[367152551,1750675838107,-500.0,0.0002134,2]
[367152552,1750675838118,-500.0,0.0002134,2]
[367152553,1750675838127,-500.0,0.0002134,2]
[367152554,1750675838138,-500.0,0.0002134,2]
[367152555,1750675838148,-500.0,0.0002134,2]
[367152556,1750675838158,-374.48172766,0.0002134,2]
[367152557,1750675838168,-1452.16,0.00021907,10]
[367152558,1750675838177,-338.32910232,0.00021917,2]
[367152560,1750675838186,-460.0,0.00021917,2]
[367152561,1750675838195,-460.0,0.00021917,2]
[367152562,1750675838208,-460.0,0.00021917,2]
[367152564,1750675838218,-460.0,0.00021917,2]
[367152565,1750675838227,-460.0,0.00021917,2]
[367152566,1750675838237,-460.0,0.00021917,2]
[367152567,1750675838246,-460.0,0.00021917,2]
[367152568,1750675838256,-460.0,0.00021917,2]
[367152569,1750675838265,-460.0,0.00021917,2]
[367152570,1750675838274,-460.0,0.00021917,2]
[367152571,1750675838283,-460.0,0.00021917,2]
[367152572,1750675838293,-464.34,0.00021917,2]
[367152573,1750675838303,-1394.67,0.00021917,2]
[367152574,1750675838312,-460.0,0.00021917,2]
[367152575,1750675838322,-665.08,0.00021917,2]
[367152576,1750675838331,-460.0,0.00021917,2]
[367152577,1750675838340,-460.0,0.00021917,2]
[367152578,1750675838350,-460.0,0.00021917,2]
[367152579,1750675838359,-670.77,0.00021917,2]
[367152580,1750675838369,-707.06,0.00021917,2]
[367152581,1750675838379,-460.0,0.00021917,2]
[367152582,1750675838389,-460.0,0.00021917,2]
[367152583,1750675838398,-460.0,0.00021917,2]
[367152584,1750675838408,-460.0,0.00021917,2]
[367152585,1750675838418,-291.26242139,0.00021917,2]
[367152586,1750675838427,-460.0,0.00021917,2]
[367152587,1750675838436,-460.0,0.00021917,2]
[367152588,1750675838445,-460.0,0.00021917,2]
[367152589,1750675838455,-460.0,0.00021917,2]
[367152590,1750675838465,-460.0,0.00021917,2]
[367152591,1750675838474,-460.0,0.00021917,2]
[367152592,1750675838483,-901.51,0.00021917,2]
[367152593,1750675838492,-466.82,0.00021917,2]
[367152594,1750675838501,-520.11,0.00021917,2]
[367152595,1750675838511,-460.0,0.00021917,2]
[367152596,1750675838520,-460.0,0.00021917,2]
[367152597,1750675838529,-460.0,0.00021917,2]
[367152598,1750675838538,-460.0,0.00021917,2]
[367152599,1750675838547,-637.45,0.00021917,2]
[367152600,1750675838558,-460.0,0.00021917,2]
[367152601,1750675838568,-460.0,0.00021917,2]
[367152602,1750675838578,-460.0,0.00021917,2]
[367152603,1750675838588,-460.0,0.00021917,2]
[367152604,1750675838598,-460.0,0.00021917,2]
[367152605,1750675838608,-460.0,0.00021917,2]
[367152606,1750675838618,-412.89983527,0.00021917,2]
[367152607,1750675838628,-799.45,0.00021917,2]
[367152608,1750675838638,-461.46988072,0.00021917,2]
[367152609,1750675838647,-460.0,0.00021917,2]
[367152610,1750675838657,-460.0,0.00021917,2]
[367152611,1750675838666,-460.0,0.00021917,2]
[367152612,1750675838675,-460.0,0.00021917,2]
[367152613,1750675838684,-460.0,0.00021917,2]
[367152614,1750675838695,-460.0,0.00021917,2]
[367152615,1750675838705,-460.0,0.00021917,2]
[367152616,1750675838714,-460.0,0.00021917,2]
[367152617,1750675838724,-460.0,0.00021917,2]
[367152619,1750675838734,-486.13,0.00021917,2]
[367152620,1750675838745,-460.0,0.00021917,2]
[367152621,1750675838754,-460.0,0.00021917,2]
[367152622,1750675838763,-460.0,0.00021917,2]
[367152623,1750675838772,-460.0,0.00021917,2]
[367152624,1750675838781,-460.0,0.00021917,2]
[367152625,1750675838791,-460.0,0.00021917,2]
[367152626,1750675838800,-1165.35,0.00021917,2]
[367152627,1750675838809,-460.0,0.00021917,2]
[367152628,1750675838818,-460.0,0.00021917,2]
[367152629,1750675838827,-551.71,0.00021917,2]
[367152630,1750675838837,-460.0,0.00021917,2]
[367152631,1750675838846,-460.0,0.00021917,2]
[367152632,1750675838856,-344.25208052,0.00021917,2]
[367152633,1750675838865,-460.0,0.00021917,2]
[367152634,1750675838874,-460.0,0.00021917,2]
[367152635,1750675838884,-460.0,0.00021917,2]
[367152636,1750675838893,-460.0,0.00021917,2]
[367152637,1750675838902,-460.0,0.00021917,2]
[367152638,1750675838911,-205.46665934,0.00021917,2]
[367152639,1750675838920,-460.0,0.00021917,2]
[367152640,1750675838929,-460.0,0.00021917,2]
[367152641,1750675838939,-333.33982744,0.00021917,2]
[367152642,1750675838950,-593.87001257,0.00021917,2]
[367152643,1750675838960,-460.0,0.00021917,2]
[367152644,1750675838970,-460.0,0.00021917,2]
[367152645,1750675838980,-460.0,0.00021917,2]
[367152646,1750675838990,-460.0,0.00021917,2]
[367152647,1750675839000,-300.0,0.00021917,2]
[367152648,1750675839009,-460.0,0.00021917,2]
[367152649,1750675839019,-460.0,0.00021917,2]
[367152650,1750675839028,-1000.23127981,0.00021917,2]
[367152651,1750675839037,-460.0,0.00021917,2]
[367152652,1750675839048,-473.16,0.00021917,2]
[367152653,1750675839057,-460.0,0.00021917,2]
[367152654,1750675839066,-460.0,0.00021917,2]
[367152655,1750675839078,-460.0,0.00021917,2]
[367152656,1750675839087,-380.00409345,0.00021917,2]
[367152657,1750675839097,-713.77,0.00021917,2]
[367152658,1750675839106,-1158.89,0.00021917,2]
[367152659,1750675839116,-460.0,0.00021917,2]
[367152660,1750675839125,-460.0,0.00021917,2]
[367152661,1750675839134,-344.63608748,0.00021917,2]
[367152662,1750675839144,-524.47,0.00021917,2]
[367152663,1750675839153,-460.0,0.00021917,2]
[367152664,1750675839163,-460.0,0.00021917,2]
[367152665,1750675839172,-301.17698908,0.00021917,2]
[367152666,1750675839183,-243.83389583,0.00021917,2]
[367152667,1750675839192,-460.0,0.00021917,2]
[367152668,1750675839201,-460.0,0.00021917,2]
[367152669,1750675839210,-460.0,0.00021917,2]
[367152670,1750675839220,-460.0,0.00021917,2]
[367152671,1750675839229,-460.0,0.00021917,2]
[367152672,1750675839238,-2656.19,0.00021917,2]
[367152673,1750675839247,-460.0,0.00021917,2]
[367152674,1750675839256,-406.43770879,0.00021917,2]
[367152675,1750675839266,-848.28,0.00021917,2]
[367152676,1750675839275,-460.0,0.00021917,2]
[367152677,1750675839285,-460.0,0.00021917,2]
[367152678,1750675839296,-500.0,0.00021917,2]
[367152680,1750675839307,-500.0,0.00021917,2]
[367152682,1750675839317,-460.0,0.00021917,2]
[367152684,1750675839328,-460.0,0.00021917,2]
[367152686,1750675839337,-519.30897647,0.00021917,2]
[367152688,1750675839346,-460.0,0.00021917,2]
[367152690,1750675839357,-460.0,0.00021917,2]
[367152692,1750675839367,-460.0,0.00021917,2]
[367152694,1750675839376,-460.0,0.00021917,2]
[367152696,1750675839385,-460.0,0.00021917,2]
[367152698,1750675839394,-460.0,0.00021917,2]
[367152700,1750675839404,-460.0,0.00021917,2]
[367152701,1750675839414,-382.69695999,0.00021917,2]
[367152702,1750675839424,-630.35,0.00021917,2]
[367152703,1750675839434,-816.62,0.00021917,2]
[367152704,1750675839443,-920.04,0.00021917,2]
[367152705,1750675839452,-460.0,0.00021917,2]
[367152707,1750675839462,-254.78552679,0.00021917,2]
[367152708,1750675839472,-872.8,0.00021917,2]
[367152710,1750675839481,-460.0,0.00021917,2]
[367152712,1750675839491,-460.0,0.00021917,2]
[367152714,1750675839500,-460.0,0.00021917,2]
[367152716,1750675839510,-460.0,0.00021917,2]
[367152719,1750675839519,-460.0,0.00021917,2]
[367152721,1750675839528,-574.24,0.00021917,2]
[367152724,1750675839538,-410.50456212,0.00021917,2]
[367152727,1750675839548,-460.0,0.00021917,2]
[367152728,1750675839557,-460.0,0.00021917,2]
[367152729,1750675839566,-460.0,0.00021917,2]
[367152730,1750675839575,-460.0,0.00021917,2]
[367152732,1750675839586,-1006.82,0.00021917,2]
[367152734,1750675839595,-405.80203136,0.00021917,2]
[367152736,1750675839604,-523.43,0.00021917,2]
[367152738,1750675839614,-578.66057676,0.00021917,2]
[367152740,1750675839623,-523.16,0.00021917,2]
[367152742,1750675839633,-460.0,0.00021917,2]
[367152743,1750675839643,-672.92,0.00021917,2]
[367152744,1750675839654,-460.0,0.00021917,2]
[367152745,1750675839665,-253.11345004,0.00021917,2]
[367152746,1750675839675,-460.0,0.00021917,2]
[367152747,1750675839684,-460.0,0.00021917,2]
[367152748,1750675839694,-460.0,0.00021917,2]
[367152749,1750675839704,-460.0,0.00021917,2]
[367152750,1750675839713,-460.0,0.00021917,2]
[367152751,1750675839723,-460.0,0.00021917,2]
[367152752,1750675839734,-460.0,0.00021917,2]
[367152753,1750675839745,-460.0,0.00021917,2]
[367152754,1750675839754,-460.0,0.00021917,2]
[367152755,1750675839765,-428.57409162,0.00021917,2]
[367152756,1750675839776,-460.0,0.00021917,2]
[367152757,1750675839787,-460.0,0.00021917,2]
[367152758,1750675839799,-460.0,0.00021917,2]
[367152759,1750675839810,-460.0,0.00021917,2]
[367152760,1750675839819,-460.0,0.00021917,2]
[367152761,1750675839829,-3216.98,0.00021917,2]
[367152762,1750675839838,-460.0,0.00021917,2]
[367152763,1750675839847,-702.9,0.00021917,2]
[367152764,1750675839857,-460.0,0.00021917,2]
[367152765,1750675839867,-460.0,0.00021917,2]
[367152766,1750675839876,-460.0,0.00021917,2]
[367152767,1750675839885,-1122.39,0.00021917,2]
[367152768,1750675839895,-460.0,0.00021917,2]
[367152769,1750675839904,-460.0,0.00021917,2]
[367152770,1750675839913,-164.9369668,0.00021917,2]
[367152771,1750675839922,-460.0,0.00021917,2]
[367152772,1750675839932,-237.94133473,0.00021917,2]
[367152773,1750675839941,-460.0,0.00021917,2]
[367152774,1750675839951,-460.0,0.00021917,2]
[367152775,1750675839960,-460.0,0.00021917,2]
[367152776,1750675839970,-460.0,0.00021917,2]
[367152777,1750675839979,-2513.19,0.00021917,2]
[367152778,1750675839989,-460.0,0.00021917,2]
[367152779,1750675839998,-151.0,0.00021917,2]
[367152780,1750675840008,-588.22,0.00021917,2]
[367152781,1750675840017,-1032.73,0.00021917,2]
[367152782,1750675840027,-598.63839924,0.00021917,2]
[367152783,1750675840037,-460.0,0.00021917,2]
[367152784,1750675840046,-460.0,0.00021917,2]
[367152785,1750675840056,-460.0,0.00021917,2]
[367152786,1750675840065,-460.0,0.00021917,2]
[367152787,1750675840078,-151.0,0.00021917,2]
[367152788,1750675840087,-151.0,0.00021917,2]
[367152789,1750675840096,-460.0,0.00021917,2]
[367152790,1750675840107,-1413.62,0.00021917,2]
[367152791,1750675840116,-622.26,0.00021917,2]
[367152792,1750675840127,-460.0,0.00021917,2]
[367152793,1750675840136,-205.97525582,0.00021917,2]
[367152794,1750675840150,-460.0,0.00021917,2]
[367152795,1750675840160,-460.0,0.00021917,2]
[367152796,1750675840170,-996.39,0.00021917,2]
[367152797,1750675840179,-460.0,0.00021917,2]
[367152798,1750675840189,-460.0,0.00021917,2]
[367152799,1750675840199,-460.0,0.00021917,2]
[367152800,1750675840209,-460.0,0.00021917,2]
[367152801,1750675840220,-523.84,0.00021917,2]
[367152802,1750675840230,-460.0,0.00021917,2]
[367152803,1750675840240,-501.6,0.00021917,2]
[367152804,1750675840250,-460.0,0.00021917,2]
[367152805,1750675840261,-460.0,0.00021917,2]
[367152806,1750675840271,-525.19986742,0.00021917,2]
[367152807,1750675840280,-460.0,0.00021917,2]
[367152808,1750675840289,-460.0,0.00021917,2]
[367152809,1750675840300,-460.0,0.00021917,2]
[367152810,1750675840310,-460.0,0.00021917,2]
[367152811,1750675840319,-151.0,0.00021917,2]
[367152812,1750675840329,-167.05320315,0.00021917,2]
[367152813,1750675840339,-460.0,0.00021917,2]
[367152814,1750675840348,-403.78421503,0.00021917,2]
[367152815,1750675840358,-440.37008822,0.00021917,2]
[367152816,1750675840368,-460.0,0.00021917,2]
[367152817,1750675840377,-460.0,0.00021917,2]
[367152818,1750675840387,-460.0,0.00021917,2]
[367152819,1750675840397,-754.95,0.00021917,2]
[367152820,1750675840407,-460.0,0.00021917,2]
[367152821,1750675840417,-460.0,0.00021917,2]
[367152822,1750675840427,-460.0,0.00021917,2]
[367152823,1750675840436,-635.52,0.00021917,2]
[367152824,1750675840446,-460.0,0.00021917,2]
[367152825,1750675840455,-460.0,0.00021917,2]
[367152826,1750675840465,-151.0,0.00021917,2]
[367152827,1750675840475,-692.91,0.00021917,2]
[367152828,1750675840485,-460.0,0.00021917,2]
[367152829,1750675840494,-460.0,0.00021917,2]
[367152830,1750675840503,-460.0,0.00021917,2]
[367152831,1750675840513,-504.94,0.00021917,2]
[367152832,1750675840522,-460.0,0.00021917,2]
[367152833,1750675840531,-460.0,0.00021917,2]
[367152834,1750675840542,-460.0,0.00021917,2]
[367152835,1750675840551,-151.0,0.00021917,2]
[367152836,1750675840560,-1076.0,0.00021917,2]
[367152837,1750675840570,-460.0,0.00021917,2]
[367152838,1750675840579,-460.0,0.00021917,2]
[367152839,1750675840588,-460.0,0.00021917,2]
[367152840,1750675840598,-460.0,0.00021917,2]
[367152841,1750675840608,-460.0,0.00021917,2]
[367152842,1750675840617,-462.33201513,0.00021917,2]
[367152843,1750675840627,-460.0,0.00021917,2]
[367152844,1750675840636,-1042.97,0.00021917,2]
[367152845,1750675840645,-460.0,0.00021917,2]
[367152846,1750675840655,-460.0,0.00021917,2]
[367152847,1750675840665,-460.0,0.00021917,2]
[367152848,1750675840674,-460.0,0.00021917,2]
[367152849,1750675840684,-460.0,0.00021917,2]
[367152850,1750675840693,-460.0,0.00021917,2]
[367152851,1750675840702,-602.11353351,0.00021917,2]
[367152852,1750675840712,-460.0,0.00021917,2]
[367152853,1750675840722,-460.0,0.00021917,2]
[367152854,1750675840731,-460.0,0.00021917,2]
[367152855,1750675840740,-717.71,0.00021917,2]